{"text_format":"3","workbook":"xlsx","n_sheets":6,"sheets":["Kontrolna tabla","Prodaja","Prihod","Troškovi","Porezi","Kategorije"],"not_rendered":{"images":1,"defined_names":34},"read":"whole","date_system":"1900"}

{"sheet":"Kontrolna tabla","index":0,"n_rows":19,"n_cols":8,"rows_kept":19,"merged":[[0,2,0,4],[0,6,3,7],[4,1,4,7]]}
[null,"Bilans stanja","Za [mesec ili godina] sa završetkom [dan-mesec-godina]"]
[null,"Ime preduzeća","Navedeno u hiljadama"]
[null,"Trenutna bruto marža [L/J]",{"$f":"IFERROR(IF(Total_Gross_Profit=0,\"-\",Total_Gross_Profit/Total_Sales_Revenue),\"-\")","v":"-"}]
[null,"Trenutni povraćaj od prodaje [T/J]",{"$f":"IFERROR(IF(Neto_profit=0,\"-\",Neto_profit/Total_Sales_Revenue),\"-\")","v":"-"}]
[null,"Nemojte da menjate kategorije u ovom radnom listu kako formule ne bi bile raskinute. Koristite radni list „Kategorija“ da biste dodali kategorije i ažurirali odgovarajuće radne listove pomoću stavki. Ovaj radni list će se automatski ažurirati."]
[null,"Rezime","Ukupno iz prethodnog perioda","Ukupan budžet","Ukupno iz trenutnog\nperioda","Ukupno iz trenutnog perioda kao % prodaje","Ukupno % promene u odnosu na prethodni period","Ukupno % promene u odnosu na budžet"]
[null,"Ukupni prihod od prodaje [J]",{"$f":"SUMIFS(Prihod_od_prodaje1[Prethodni period],Prihod_od_prodaje1[Tip prihoda],\"Prihod od prodaje\")","v":0},{"$f":"SUMIFS(Prihod_od_prodaje1[Budžet],Prihod_od_prodaje1[Tip prihoda],\"Prihod od prodaje\")","v":0},{"$f":"SUMIFS(Prihod_od_prodaje1[Trenutni period],Prihod_od_prodaje1[Tip prihoda],\"Prihod od prodaje\")","v":0},{"$f":"SUMIFS(Prihod_od_prodaje1[Trenutni period kao % prodaje],Prihod_od_prodaje1[Tip prihoda],\"Prihod od prodaje\")","v":{"v":0,"d":"0.00%"}},{"$f":"SUMIFS(Prihod_od_prodaje1[% promene u odnosu na prethodni period],Prihod_od_prodaje1[Tip prihoda],\"Prihod od prodaje\")","v":{"v":0,"d":"0.00%"}},{"$f":"SUMIFS(Prihod_od_prodaje1[% promene u odnosu na budžet],Prihod_od_prodaje1[Tip prihoda],\"Prihod od prodaje\")","v":{"v":0,"d":"0.00%"}}]
[null,"Ukupni trošak prodaje [K]",{"$f":"SUMIFS(Prihod_od_prodaje1[Prethodni period],Prihod_od_prodaje1[Tip prihoda],\"Trošak prodaje\")","v":0},{"$f":"SUMIFS(Prihod_od_prodaje1[Budžet],Prihod_od_prodaje1[Tip prihoda],\"Trošak prodaje\")","v":0},{"$f":"SUMIFS(Prihod_od_prodaje1[Trenutni period],Prihod_od_prodaje1[Tip prihoda],\"Trošak prodaje\")","v":0},{"$f":"SUMIFS(Prihod_od_prodaje1[Trenutni period kao % prodaje],Prihod_od_prodaje1[Tip prihoda],\"Trošak prodaje\")","v":{"v":0,"d":"0.00%"}},{"$f":"SUMIFS(Prihod_od_prodaje1[% promene u odnosu na prethodni period],Prihod_od_prodaje1[Tip prihoda],\"Trošak prodaje\")","v":{"v":0,"d":"0.00%"}},{"$f":"SUMIFS(Prihod_od_prodaje1[% promene u odnosu na budžet],Prihod_od_prodaje1[Tip prihoda],\"Trošak prodaje\")","v":{"v":0,"d":"0.00%"}}]
[null,"Ukupni troškovi prodaje i marketinga [M]",{"$f":"SUMIFS(Operativni_troškovi[Prethodni period],Operativni_troškovi[Tip troška],\"Prodaja i marketing\")","v":0},{"$f":"SUMIFS(Operativni_troškovi[Budžet],Operativni_troškovi[Tip troška],\"Prodaja i marketing\")","v":0},{"$f":"SUMIFS(Operativni_troškovi[Trenutni period],Operativni_troškovi[Tip troška],\"Prodaja i marketing\")","v":0},{"$f":"SUMIFS(Operativni_troškovi[Trenutni period kao % prodaje],Operativni_troškovi[Tip troška],\"Prodaja i marketing\")","v":{"v":0,"d":"0.00%"}},{"$f":"SUMIFS(Operativni_troškovi[% promene u odnosu na prethodni period],Operativni_troškovi[Tip troška],\"Prodaja i marketing\")","v":{"v":0,"d":"0.00%"}},{"$f":"SUMIFS(Operativni_troškovi[% promene u odnosu na budžet],Operativni_troškovi[Tip troška],\"Prodaja i marketing\")","v":{"v":0,"d":"0.00%"}}]
[null,"Ukupni troškovi istraživanja i razvoja [N]",{"$f":"SUMIFS(Operativni_troškovi[Prethodni period],Operativni_troškovi[Tip troška],\"Istraživanje i razvoj\")","v":0},{"$f":"SUMIFS(Operativni_troškovi[Budžet],Operativni_troškovi[Tip troška],\"Istraživanje i razvoj\")","v":0},{"$f":"SUMIFS(Operativni_troškovi[Trenutni period],Operativni_troškovi[Tip troška],\"Istraživanje i razvoj\")","v":0},{"$f":"SUMIFS(Operativni_troškovi[Trenutni period kao % prodaje],Operativni_troškovi[Tip troška],\"Istraživanje i razvoj\")","v":{"v":0,"d":"0.00%"}},{"$f":"SUMIFS(Operativni_troškovi[% promene u odnosu na prethodni period],Operativni_troškovi[Tip troška],\"Istraživanje i razvoj\")","v":{"v":0,"d":"0.00%"}},{"$f":"SUMIFS(Operativni_troškovi[% promene u odnosu na budžet],Operativni_troškovi[Tip troška],\"Istraživanje i razvoj\")","v":{"v":0,"d":"0.00%"}}]
[null,"Ukupni troškovi za opšte i administrativne potrebe [O]",{"$f":"SUMIFS(Operativni_troškovi[Prethodni period],Operativni_troškovi[Tip troška],\"Opšte i administrativne potrebe\")","v":0},{"$f":"SUMIFS(Operativni_troškovi[Budžet],Operativni_troškovi[Tip troška],\"Opšte i administrativne potrebe\")","v":0},{"$f":"SUMIFS(Operativni_troškovi[Trenutni period],Operativni_troškovi[Tip troška],\"Opšte i administrativne potrebe\")","v":0},{"$f":"SUMIFS(Operativni_troškovi[Trenutni period kao % prodaje],Operativni_troškovi[Tip troška],\"Opšte i administrativne potrebe\")","v":{"v":0,"d":"0.00%"}},{"$f":"SUMIFS(Operativni_troškovi[% promene u odnosu na prethodni period],Operativni_troškovi[Tip troška],\"Opšte i administrativne potrebe\")","v":{"v":0,"d":"0.00%"}},{"$f":"SUMIFS(Operativni_troškovi[% promene u odnosu na budžet],Operativni_troškovi[Tip troška],\"Opšte i administrativne potrebe\")","v":{"v":0,"d":"0.00%"}}]
[null,"Ukupni ostali operativni troškovi [P]",{"$f":"Operativni_troškovi[[#Totals],[Prethodni period]]-SUM(C9:C11)","v":0},{"$f":"Operativni_troškovi[[#Totals],[Budžet]]-SUM(D9:D11)","v":0},{"$f":"Operativni_troškovi[[#Totals],[Trenutni period]]-SUM(E9:E11)","v":0},{"$f":"Operativni_troškovi[[#Totals],[Trenutni period kao % prodaje]]-SUM(F9:F11)","v":{"v":0,"d":"0.00%"}},{"$f":"Operativni_troškovi[[#Totals],[% promene u odnosu na prethodni period]]-SUM(G9:G11)","v":{"v":0,"d":"0.00%"}},{"$f":"Operativni_troškovi[[#Totals],[% promene u odnosu na budžet]]-SUM(H9:H11)","v":{"v":0,"d":"0.00%"}}]
[null,"Ostali prihodi [S]",{"$f":"Prihod[[#Totals],[Prethodni period]]","v":0},{"$f":"Prihod[[#Totals],[Budžet]]","v":0},{"$f":"Prihod[[#Totals],[Trenutni period]]","v":0},{"$f":"Prihod[[#Totals],[Trenutni period kao % prodaje]]","v":{"v":0,"d":"0.00%"}},{"$f":"Prihod[[#Totals],[% promene u odnosu na prethodni period]]","v":{"v":0,"d":"0.00%"}},{"$f":"Prihod[[#Totals],[% promene u odnosu na budžet]]","v":{"v":0,"d":"0.00%"}}]
[null,"Ukupni porezi [T]",{"$f":"Porezi[[#Totals],[Prethodni period]]","v":0},{"$f":"Porezi[[#Totals],[Budžet]]","v":0},{"$f":"Porezi[[#Totals],[Trenutni period]]","v":0},{"$f":"Porezi[[#Totals],[Trenutni period kao % prodaje]]","v":{"v":0,"d":"0.00%"}},{"$f":"Porezi[[#Totals],[% promene u odnosu na prethodni period]]","v":{"v":0,"d":"0.00%"}},{"$f":"Porezi[[#Totals],[% promene u odnosu na budžet]]","v":{"v":0,"d":"0.00%"}}]
[]
[null,"Bruto profit [L=J-K]",{"$f":"IFERROR(C7-C8,\"-\")","v":0},{"$f":"IFERROR(D7-D8,\"-\")","v":0},{"$f":"IFERROR(Total_Sales_Revenue-Total_Cost_Sales,\"-\")","v":0},{"$f":"IFERROR(IF(Total_Sales_Revenue=0,\"0,00%\",Total_Gross_Profit/Total_Sales_Revenue),\"-\")","v":"0,00%"},{"$f":"IFERROR(IF(C16=Total_Gross_Profit,0,IF(Total_Gross_Profit>C16,ABS((Total_Gross_Profit/C16)-1),IF(AND(Total_Gross_Profit<C16,C16<0),-((Total_Gross_Profit/C16)-1),(Total_Gross_Profit/C16)-1))),\"-\")","v":{"v":0,"d":"0.00%"}},{"$f":"IFERROR(IF(D16=Total_Gross_Profit,0,IF(Total_Gross_Profit>D16,ABS((Total_Gross_Profit/D16)-1),IF(AND(Total_Gross_Profit<D16,D16<0),-((Total_Gross_Profit/D16)-1),(Total_Gross_Profit/D16)-1))),\"-\")","v":{"v":0,"d":"0.00%"}}]
[null,"Ukupni operativni troškovi [Q=M+N+O+P]",{"$f":"IFERROR(C9+C10+C11+C12,\"-\")","v":0},{"$f":"IFERROR(D9+D10+D11+D12,\"-\")","v":0},{"$f":"IFERROR(Total_Sales_and_Marketing+Total_Research_and_Development+Total_General_and_Administrative+Total_Other_Expenses,\"-\")","v":0},{"$f":"IFERROR(IF(Total_Sales_Revenue=0,\"0,00%\",Total_Operating_Expenses/Total_Sales_Revenue),\"-\")","v":"0,00%"},{"$f":"IFERROR(IF(C17=Total_Operating_Expenses,0,IF(Total_Operating_Expenses>C17,ABS((Total_Operating_Expenses/C17)-1),IF(AND(Total_Operating_Expenses<C17,C17<0),-((Total_Operating_Expenses/C17)-1),(Total_Operating_Expenses/C17)-1))),\"-\")","v":{"v":0,"d":"0.00%"}},{"$f":"IFERROR(IF(D17=Total_Operating_Expenses,0,IF(Total_Operating_Expenses>D17,ABS((Total_Operating_Expenses/D17)-1),IF(AND(Total_Operating_Expenses<D17,D17<0),-((Total_Operating_Expenses/D17)-1),(Total_Operating_Expenses/D17)-1))),\"-\")","v":{"v":0,"d":"0.00%"}}]
[null,"Prihod od operacija [R=L-Q]",{"$f":"IFERROR(C16-C17,\"-\")","v":0},{"$f":"IFERROR(D16-D17,\"-\")","v":0},{"$f":"IFERROR(Total_Gross_Profit-Total_Operating_Expenses,\"-\")","v":0},{"$f":"IFERROR(IF(Total_Sales_Revenue=0,\"0,00%\",Total_Income_Operations/Total_Sales_Revenue),\"-\")","v":"0,00%"},{"$f":"IFERROR(IF(C18=Total_Income_Operations,0,IF(Total_Income_Operations>C18,ABS((Total_Income_Operations/C18)-1),IF(AND(Total_Income_Operations<C18,C18<0),-((Total_Income_Operations/C18)-1),(Total_Income_Operations/C18)-1))),\"-\")","v":{"v":0,"d":"0.00%"}},{"$f":"IFERROR(IF(D18=Total_Income_Operations,0,IF(Total_Income_Operations>D18,ABS((Total_Income_Operations/D18)-1),IF(AND(Total_Income_Operations<D18,D18<0),-((Total_Income_Operations/D18)-1),(Total_Income_Operations/D18)-1))),\"-\")","v":{"v":0,"d":"0.00%"}}]
[null,"Neto profit [U=R+S-T]",{"$f":"IFERROR(C18+C13-C14,\"-\")","v":0},{"$f":"IFERROR(D18+D13-D14,\"-\")","v":0},{"$f":"Total_Income_Operations+Total_Other_Income-Total_Taxes","v":0},{"$f":"IFERROR(IF(Total_Sales_Revenue=0,\"0,00%\",Neto_profit/Total_Sales_Revenue),\"-\")","v":"0,00%"},{"$f":"IFERROR(IF(C19=Neto_profit,0,IF(Neto_profit>C19,ABS((Neto_profit/C19)-1),IF(AND(Neto_profit<C19,C19<0),-((Neto_profit/C19)-1),(Neto_profit/C19)-1))),\"-\")","v":{"v":0,"d":"0.00%"}},{"$f":"IFERROR(IF(D19=Neto_profit,0,IF(Neto_profit>D19,ABS((Neto_profit/D19)-1),IF(AND(Neto_profit<D19,D19<0),-((Neto_profit/D19)-1),(Neto_profit/D19)-1))),\"-\")","v":{"v":0,"d":"0.00%"}}]

{"sheet":"Prodaja","index":1,"n_rows":13,"n_cols":9,"rows_kept":13,"merged":[[0,7,2,8]]}
[null,{"$f":"Naslov_RadneSveske","v":"Bilans stanja"}]
[null,{"$f":"Ime_preduzeća","v":"Ime preduzeća"},"Navedeno u hiljadama"]
[null,"Prihod od prodaje",{"$f":"IFERROR(Prihod_od_prodaje,\"-\")","v":0}]
[null,"Tip prihoda","Opis","Prethodni period","Budžet","Trenutni period","Trenutni period kao % prodaje","% promene u odnosu na prethodni period","% promene u odnosu na budžet"]
[null,"Prihod od prodaje","Proizvod/usluga 1",{"$nulls":3},{"$f":"IFERROR(IF(Prihod_od_prodaje1[[#Totals],[Trenutni period]]=0,\"-\",Prihod_od_prodaje1[Trenutni period]/Prihod_od_prodaje),\"-\")","v":"-"},{"$f":"IFERROR(IF(Prihod_od_prodaje1[[#This Row],[Prethodni period]]=Prihod_od_prodaje1[[#This Row],[Trenutni period]],0,IF(Prihod_od_prodaje1[[#This Row],[Trenutni period]]>Prihod_od_prodaje1[[#This Row],[Prethodni period]],ABS((Prihod_od_prodaje1[[#This Row],[Trenutni period]]/Prihod_od_prodaje1[[#This Row],[Prethodni period]])-1),IF(AND(Prihod_od_prodaje1[[#This Row],[Trenutni period]]<Prihod_od_prodaje1[[#This Row],[Prethodni period]],Prihod_od_prodaje1[[#This Row],[Prethodni period]]<0),-((Prihod_od_prodaje1[[#This Row],[Trenutni period]]/Prihod_od_prodaje1[[#This Row],[Prethodni period]])-1),(Prihod_od_prodaje1[[#This Row],[Trenutni period]]/Prihod_od_prodaje1[[#This Row],[Prethodni period]])-1))),\"-\")","v":{"v":0,"d":"0.00%"}},{"$f":"IFERROR(IF(Prihod_od_prodaje1[[#This Row],[Budžet]]=Prihod_od_prodaje1[[#This Row],[Trenutni period]],0,IF(Prihod_od_prodaje1[[#This Row],[Trenutni period]]>Prihod_od_prodaje1[[#This Row],[Budžet]],ABS((Prihod_od_prodaje1[[#This Row],[Trenutni period]]/Prihod_od_prodaje1[[#This Row],[Budžet]])-1),IF(AND(Prihod_od_prodaje1[[#This Row],[Trenutni period]]<Prihod_od_prodaje1[[#This Row],[Budžet]],Prihod_od_prodaje1[[#This Row],[Budžet]]<0),-((Prihod_od_prodaje1[[#This Row],[Trenutni period]]/Prihod_od_prodaje1[[#This Row],[Budžet]])-1),(Prihod_od_prodaje1[[#This Row],[Trenutni period]]/Prihod_od_prodaje1[[#This Row],[Budžet]])-1))),\"-\")","v":{"v":0,"d":"0.00%"}}]
[null,"Prihod od prodaje","Proizvod/usluga 2",{"$nulls":3},{"$f":"IFERROR(IF(Prihod_od_prodaje1[[#Totals],[Trenutni period]]=0,\"-\",Prihod_od_prodaje1[Trenutni period]/Prihod_od_prodaje),\"-\")","v":"-"},{"$f":"IFERROR(IF(Prihod_od_prodaje1[[#This Row],[Prethodni period]]=Prihod_od_prodaje1[[#This Row],[Trenutni period]],0,IF(Prihod_od_prodaje1[[#This Row],[Trenutni period]]>Prihod_od_prodaje1[[#This Row],[Prethodni period]],ABS((Prihod_od_prodaje1[[#This Row],[Trenutni period]]/Prihod_od_prodaje1[[#This Row],[Prethodni period]])-1),IF(AND(Prihod_od_prodaje1[[#This Row],[Trenutni period]]<Prihod_od_prodaje1[[#This Row],[Prethodni period]],Prihod_od_prodaje1[[#This Row],[Prethodni period]]<0),-((Prihod_od_prodaje1[[#This Row],[Trenutni period]]/Prihod_od_prodaje1[[#This Row],[Prethodni period]])-1),(Prihod_od_prodaje1[[#This Row],[Trenutni period]]/Prihod_od_prodaje1[[#This Row],[Prethodni period]])-1))),\"-\")","v":{"v":0,"d":"0.00%"}},{"$f":"IFERROR(IF(Prihod_od_prodaje1[[#This Row],[Budžet]]=Prihod_od_prodaje1[[#This Row],[Trenutni period]],0,IF(Prihod_od_prodaje1[[#This Row],[Trenutni period]]>Prihod_od_prodaje1[[#This Row],[Budžet]],ABS((Prihod_od_prodaje1[[#This Row],[Trenutni period]]/Prihod_od_prodaje1[[#This Row],[Budžet]])-1),IF(AND(Prihod_od_prodaje1[[#This Row],[Trenutni period]]<Prihod_od_prodaje1[[#This Row],[Budžet]],Prihod_od_prodaje1[[#This Row],[Budžet]]<0),-((Prihod_od_prodaje1[[#This Row],[Trenutni period]]/Prihod_od_prodaje1[[#This Row],[Budžet]])-1),(Prihod_od_prodaje1[[#This Row],[Trenutni period]]/Prihod_od_prodaje1[[#This Row],[Budžet]])-1))),\"-\")","v":{"v":0,"d":"0.00%"}}]
[null,"Prihod od prodaje","Proizvod/usluga 3",{"$nulls":3},{"$f":"IFERROR(IF(Prihod_od_prodaje1[[#Totals],[Trenutni period]]=0,\"-\",Prihod_od_prodaje1[Trenutni period]/Prihod_od_prodaje),\"-\")","v":"-"},{"$f":"IFERROR(IF(Prihod_od_prodaje1[[#This Row],[Prethodni period]]=Prihod_od_prodaje1[[#This Row],[Trenutni period]],0,IF(Prihod_od_prodaje1[[#This Row],[Trenutni period]]>Prihod_od_prodaje1[[#This Row],[Prethodni period]],ABS((Prihod_od_prodaje1[[#This Row],[Trenutni period]]/Prihod_od_prodaje1[[#This Row],[Prethodni period]])-1),IF(AND(Prihod_od_prodaje1[[#This Row],[Trenutni period]]<Prihod_od_prodaje1[[#This Row],[Prethodni period]],Prihod_od_prodaje1[[#This Row],[Prethodni period]]<0),-((Prihod_od_prodaje1[[#This Row],[Trenutni period]]/Prihod_od_prodaje1[[#This Row],[Prethodni period]])-1),(Prihod_od_prodaje1[[#This Row],[Trenutni period]]/Prihod_od_prodaje1[[#This Row],[Prethodni period]])-1))),\"-\")","v":{"v":0,"d":"0.00%"}},{"$f":"IFERROR(IF(Prihod_od_prodaje1[[#This Row],[Budžet]]=Prihod_od_prodaje1[[#This Row],[Trenutni period]],0,IF(Prihod_od_prodaje1[[#This Row],[Trenutni period]]>Prihod_od_prodaje1[[#This Row],[Budžet]],ABS((Prihod_od_prodaje1[[#This Row],[Trenutni period]]/Prihod_od_prodaje1[[#This Row],[Budžet]])-1),IF(AND(Prihod_od_prodaje1[[#This Row],[Trenutni period]]<Prihod_od_prodaje1[[#This Row],[Budžet]],Prihod_od_prodaje1[[#This Row],[Budžet]]<0),-((Prihod_od_prodaje1[[#This Row],[Trenutni period]]/Prihod_od_prodaje1[[#This Row],[Budžet]])-1),(Prihod_od_prodaje1[[#This Row],[Trenutni period]]/Prihod_od_prodaje1[[#This Row],[Budžet]])-1))),\"-\")","v":{"v":0,"d":"0.00%"}}]
[null,"Prihod od prodaje","Proizvod/usluga 4",{"$nulls":3},{"$f":"IFERROR(IF(Prihod_od_prodaje1[[#Totals],[Trenutni period]]=0,\"-\",Prihod_od_prodaje1[Trenutni period]/Prihod_od_prodaje),\"-\")","v":"-"},{"$f":"IFERROR(IF(Prihod_od_prodaje1[[#This Row],[Prethodni period]]=Prihod_od_prodaje1[[#This Row],[Trenutni period]],0,IF(Prihod_od_prodaje1[[#This Row],[Trenutni period]]>Prihod_od_prodaje1[[#This Row],[Prethodni period]],ABS((Prihod_od_prodaje1[[#This Row],[Trenutni period]]/Prihod_od_prodaje1[[#This Row],[Prethodni period]])-1),IF(AND(Prihod_od_prodaje1[[#This Row],[Trenutni period]]<Prihod_od_prodaje1[[#This Row],[Prethodni period]],Prihod_od_prodaje1[[#This Row],[Prethodni period]]<0),-((Prihod_od_prodaje1[[#This Row],[Trenutni period]]/Prihod_od_prodaje1[[#This Row],[Prethodni period]])-1),(Prihod_od_prodaje1[[#This Row],[Trenutni period]]/Prihod_od_prodaje1[[#This Row],[Prethodni period]])-1))),\"-\")","v":{"v":0,"d":"0.00%"}},{"$f":"IFERROR(IF(Prihod_od_prodaje1[[#This Row],[Budžet]]=Prihod_od_prodaje1[[#This Row],[Trenutni period]],0,IF(Prihod_od_prodaje1[[#This Row],[Trenutni period]]>Prihod_od_prodaje1[[#This Row],[Budžet]],ABS((Prihod_od_prodaje1[[#This Row],[Trenutni period]]/Prihod_od_prodaje1[[#This Row],[Budžet]])-1),IF(AND(Prihod_od_prodaje1[[#This Row],[Trenutni period]]<Prihod_od_prodaje1[[#This Row],[Budžet]],Prihod_od_prodaje1[[#This Row],[Budžet]]<0),-((Prihod_od_prodaje1[[#This Row],[Trenutni period]]/Prihod_od_prodaje1[[#This Row],[Budžet]])-1),(Prihod_od_prodaje1[[#This Row],[Trenutni period]]/Prihod_od_prodaje1[[#This Row],[Budžet]])-1))),\"-\")","v":{"v":0,"d":"0.00%"}}]
[null,"Trošak prodaje","Proizvod/usluga 1",{"$nulls":3},{"$f":"IFERROR(IF(Prihod_od_prodaje1[[#Totals],[Trenutni period]]=0,\"-\",Prihod_od_prodaje1[Trenutni period]/Prihod_od_prodaje),\"-\")","v":"-"},{"$f":"IFERROR(IF(Prihod_od_prodaje1[[#This Row],[Prethodni period]]=Prihod_od_prodaje1[[#This Row],[Trenutni period]],0,IF(Prihod_od_prodaje1[[#This Row],[Trenutni period]]>Prihod_od_prodaje1[[#This Row],[Prethodni period]],ABS((Prihod_od_prodaje1[[#This Row],[Trenutni period]]/Prihod_od_prodaje1[[#This Row],[Prethodni period]])-1),IF(AND(Prihod_od_prodaje1[[#This Row],[Trenutni period]]<Prihod_od_prodaje1[[#This Row],[Prethodni period]],Prihod_od_prodaje1[[#This Row],[Prethodni period]]<0),-((Prihod_od_prodaje1[[#This Row],[Trenutni period]]/Prihod_od_prodaje1[[#This Row],[Prethodni period]])-1),(Prihod_od_prodaje1[[#This Row],[Trenutni period]]/Prihod_od_prodaje1[[#This Row],[Prethodni period]])-1))),\"-\")","v":{"v":0,"d":"0.00%"}},{"$f":"IFERROR(IF(Prihod_od_prodaje1[[#This Row],[Budžet]]=Prihod_od_prodaje1[[#This Row],[Trenutni period]],0,IF(Prihod_od_prodaje1[[#This Row],[Trenutni period]]>Prihod_od_prodaje1[[#This Row],[Budžet]],ABS((Prihod_od_prodaje1[[#This Row],[Trenutni period]]/Prihod_od_prodaje1[[#This Row],[Budžet]])-1),IF(AND(Prihod_od_prodaje1[[#This Row],[Trenutni period]]<Prihod_od_prodaje1[[#This Row],[Budžet]],Prihod_od_prodaje1[[#This Row],[Budžet]]<0),-((Prihod_od_prodaje1[[#This Row],[Trenutni period]]/Prihod_od_prodaje1[[#This Row],[Budžet]])-1),(Prihod_od_prodaje1[[#This Row],[Trenutni period]]/Prihod_od_prodaje1[[#This Row],[Budžet]])-1))),\"-\")","v":{"v":0,"d":"0.00%"}}]
[null,"Trošak prodaje","Proizvod/usluga 2",{"$nulls":3},{"$f":"IFERROR(IF(Prihod_od_prodaje1[[#Totals],[Trenutni period]]=0,\"-\",Prihod_od_prodaje1[Trenutni period]/Prihod_od_prodaje),\"-\")","v":"-"},{"$f":"IFERROR(IF(Prihod_od_prodaje1[[#This Row],[Prethodni period]]=Prihod_od_prodaje1[[#This Row],[Trenutni period]],0,IF(Prihod_od_prodaje1[[#This Row],[Trenutni period]]>Prihod_od_prodaje1[[#This Row],[Prethodni period]],ABS((Prihod_od_prodaje1[[#This Row],[Trenutni period]]/Prihod_od_prodaje1[[#This Row],[Prethodni period]])-1),IF(AND(Prihod_od_prodaje1[[#This Row],[Trenutni period]]<Prihod_od_prodaje1[[#This Row],[Prethodni period]],Prihod_od_prodaje1[[#This Row],[Prethodni period]]<0),-((Prihod_od_prodaje1[[#This Row],[Trenutni period]]/Prihod_od_prodaje1[[#This Row],[Prethodni period]])-1),(Prihod_od_prodaje1[[#This Row],[Trenutni period]]/Prihod_od_prodaje1[[#This Row],[Prethodni period]])-1))),\"-\")","v":{"v":0,"d":"0.00%"}},{"$f":"IFERROR(IF(Prihod_od_prodaje1[[#This Row],[Budžet]]=Prihod_od_prodaje1[[#This Row],[Trenutni period]],0,IF(Prihod_od_prodaje1[[#This Row],[Trenutni period]]>Prihod_od_prodaje1[[#This Row],[Budžet]],ABS((Prihod_od_prodaje1[[#This Row],[Trenutni period]]/Prihod_od_prodaje1[[#This Row],[Budžet]])-1),IF(AND(Prihod_od_prodaje1[[#This Row],[Trenutni period]]<Prihod_od_prodaje1[[#This Row],[Budžet]],Prihod_od_prodaje1[[#This Row],[Budžet]]<0),-((Prihod_od_prodaje1[[#This Row],[Trenutni period]]/Prihod_od_prodaje1[[#This Row],[Budžet]])-1),(Prihod_od_prodaje1[[#This Row],[Trenutni period]]/Prihod_od_prodaje1[[#This Row],[Budžet]])-1))),\"-\")","v":{"v":0,"d":"0.00%"}}]
[null,"Trošak prodaje","Proizvod/usluga 3",{"$nulls":3},{"$f":"IFERROR(IF(Prihod_od_prodaje1[[#Totals],[Trenutni period]]=0,\"-\",Prihod_od_prodaje1[Trenutni period]/Prihod_od_prodaje),\"-\")","v":"-"},{"$f":"IFERROR(IF(Prihod_od_prodaje1[[#This Row],[Prethodni period]]=Prihod_od_prodaje1[[#This Row],[Trenutni period]],0,IF(Prihod_od_prodaje1[[#This Row],[Trenutni period]]>Prihod_od_prodaje1[[#This Row],[Prethodni period]],ABS((Prihod_od_prodaje1[[#This Row],[Trenutni period]]/Prihod_od_prodaje1[[#This Row],[Prethodni period]])-1),IF(AND(Prihod_od_prodaje1[[#This Row],[Trenutni period]]<Prihod_od_prodaje1[[#This Row],[Prethodni period]],Prihod_od_prodaje1[[#This Row],[Prethodni period]]<0),-((Prihod_od_prodaje1[[#This Row],[Trenutni period]]/Prihod_od_prodaje1[[#This Row],[Prethodni period]])-1),(Prihod_od_prodaje1[[#This Row],[Trenutni period]]/Prihod_od_prodaje1[[#This Row],[Prethodni period]])-1))),\"-\")","v":{"v":0,"d":"0.00%"}},{"$f":"IFERROR(IF(Prihod_od_prodaje1[[#This Row],[Budžet]]=Prihod_od_prodaje1[[#This Row],[Trenutni period]],0,IF(Prihod_od_prodaje1[[#This Row],[Trenutni period]]>Prihod_od_prodaje1[[#This Row],[Budžet]],ABS((Prihod_od_prodaje1[[#This Row],[Trenutni period]]/Prihod_od_prodaje1[[#This Row],[Budžet]])-1),IF(AND(Prihod_od_prodaje1[[#This Row],[Trenutni period]]<Prihod_od_prodaje1[[#This Row],[Budžet]],Prihod_od_prodaje1[[#This Row],[Budžet]]<0),-((Prihod_od_prodaje1[[#This Row],[Trenutni period]]/Prihod_od_prodaje1[[#This Row],[Budžet]])-1),(Prihod_od_prodaje1[[#This Row],[Trenutni period]]/Prihod_od_prodaje1[[#This Row],[Budžet]])-1))),\"-\")","v":{"v":0,"d":"0.00%"}}]
[null,"Trošak prodaje","Proizvod/usluga 4",{"$nulls":3},{"$f":"IFERROR(IF(Prihod_od_prodaje1[[#Totals],[Trenutni period]]=0,\"-\",Prihod_od_prodaje1[Trenutni period]/Prihod_od_prodaje),\"-\")","v":"-"},{"$f":"IFERROR(IF(Prihod_od_prodaje1[[#This Row],[Prethodni period]]=Prihod_od_prodaje1[[#This Row],[Trenutni period]],0,IF(Prihod_od_prodaje1[[#This Row],[Trenutni period]]>Prihod_od_prodaje1[[#This Row],[Prethodni period]],ABS((Prihod_od_prodaje1[[#This Row],[Trenutni period]]/Prihod_od_prodaje1[[#This Row],[Prethodni period]])-1),IF(AND(Prihod_od_prodaje1[[#This Row],[Trenutni period]]<Prihod_od_prodaje1[[#This Row],[Prethodni period]],Prihod_od_prodaje1[[#This Row],[Prethodni period]]<0),-((Prihod_od_prodaje1[[#This Row],[Trenutni period]]/Prihod_od_prodaje1[[#This Row],[Prethodni period]])-1),(Prihod_od_prodaje1[[#This Row],[Trenutni period]]/Prihod_od_prodaje1[[#This Row],[Prethodni period]])-1))),\"-\")","v":{"v":0,"d":"0.00%"}},{"$f":"IFERROR(IF(Prihod_od_prodaje1[[#This Row],[Budžet]]=Prihod_od_prodaje1[[#This Row],[Trenutni period]],0,IF(Prihod_od_prodaje1[[#This Row],[Trenutni period]]>Prihod_od_prodaje1[[#This Row],[Budžet]],ABS((Prihod_od_prodaje1[[#This Row],[Trenutni period]]/Prihod_od_prodaje1[[#This Row],[Budžet]])-1),IF(AND(Prihod_od_prodaje1[[#This Row],[Trenutni period]]<Prihod_od_prodaje1[[#This Row],[Budžet]],Prihod_od_prodaje1[[#This Row],[Budžet]]<0),-((Prihod_od_prodaje1[[#This Row],[Trenutni period]]/Prihod_od_prodaje1[[#This Row],[Budžet]])-1),(Prihod_od_prodaje1[[#This Row],[Trenutni period]]/Prihod_od_prodaje1[[#This Row],[Budžet]])-1))),\"-\")","v":{"v":0,"d":"0.00%"}}]
[null,"Ukupni prihod od prodaje",null,{"$f":"SUBTOTAL(109,Prihod_od_prodaje1[Prethodni period])","v":0},{"$f":"SUBTOTAL(109,Prihod_od_prodaje1[Budžet])","v":0},{"$f":"SUBTOTAL(109,Prihod_od_prodaje1[Trenutni period])","v":0},{"$f":"SUBTOTAL(109,Prihod_od_prodaje1[Trenutni period kao % prodaje])","v":{"v":0,"d":"0.00%"}},{"$f":"SUBTOTAL(109,Prihod_od_prodaje1[% promene u odnosu na prethodni period])","v":{"v":0,"d":"0.00%"}},{"$f":"SUBTOTAL(109,Prihod_od_prodaje1[% promene u odnosu na budžet])","v":{"v":0,"d":"0.00%"}}]

{"sheet":"Prihod","index":2,"n_rows":7,"n_cols":9,"rows_kept":7,"merged":[[0,7,2,8]]}
[null,{"$f":"Naslov_RadneSveske","v":"Bilans stanja"}]
[null,{"$f":"Ime_preduzeća","v":"Ime preduzeća"},"Navedeno u hiljadama"]
[null,"Prihod",{"$f":"IFERROR(Prihod[[#Totals],[Trenutni period]],\"-\")","v":0}]
[null,"Tip prihoda","Opis","Prethodni period","Budžet","Trenutni period","Trenutni period kao % prodaje","% promene u odnosu na prethodni period","% promene u odnosu na budžet"]
[null,"Prihod","Ostali prihod",{"$nulls":3},{"$f":"IFERROR(IF(Prihod_od_prodaje=0,\"-\",Prihod[Trenutni period]/Prihod_od_prodaje),\"-\")","v":"-"},{"$f":"IFERROR(IF(Prihod[[#This Row],[Prethodni period]]=Prihod[[#This Row],[Trenutni period]],0,IF(Prihod[[#This Row],[Trenutni period]]>Prihod[[#This Row],[Prethodni period]],ABS((Prihod[[#This Row],[Trenutni period]]/Prihod[[#This Row],[Prethodni period]])-1),IF(AND(Prihod[[#This Row],[Trenutni period]]<Prihod[[#This Row],[Prethodni period]],Prihod[[#This Row],[Prethodni period]]<0),-((Prihod[[#This Row],[Trenutni period]]/Prihod[[#This Row],[Prethodni period]])-1),(Prihod[[#This Row],[Trenutni period]]/Prihod[[#This Row],[Prethodni period]])-1))),\"-\")","v":{"v":0,"d":"0.00%"}},{"$f":"IFERROR(IF(Prihod[[#This Row],[Budžet]]=Prihod[[#This Row],[Trenutni period]],0,IF(Prihod[[#This Row],[Trenutni period]]>Prihod[[#This Row],[Budžet]],ABS((Prihod[[#This Row],[Trenutni period]]/Prihod[[#This Row],[Budžet]])-1),IF(AND(Prihod[[#This Row],[Trenutni period]]<Prihod[[#This Row],[Budžet]],Prihod[[#This Row],[Budžet]]<0),-((Prihod[[#This Row],[Trenutni period]]/Prihod[[#This Row],[Budžet]])-1),(Prihod[[#This Row],[Trenutni period]]/Prihod[[#This Row],[Budžet]])-1))),\"-\")","v":{"v":0,"d":"0.00%"}}]
[{"$nulls":6},{"$f":"IFERROR(IF(Prihod_od_prodaje=0,\"-\",Prihod[Trenutni period]/Prihod_od_prodaje),\"-\")","v":"-"},{"$f":"IFERROR(IF(Prihod[[#This Row],[Prethodni period]]=Prihod[[#This Row],[Trenutni period]],0,IF(Prihod[[#This Row],[Trenutni period]]>Prihod[[#This Row],[Prethodni period]],ABS((Prihod[[#This Row],[Trenutni period]]/Prihod[[#This Row],[Prethodni period]])-1),IF(AND(Prihod[[#This Row],[Trenutni period]]<Prihod[[#This Row],[Prethodni period]],Prihod[[#This Row],[Prethodni period]]<0),-((Prihod[[#This Row],[Trenutni period]]/Prihod[[#This Row],[Prethodni period]])-1),(Prihod[[#This Row],[Trenutni period]]/Prihod[[#This Row],[Prethodni period]])-1))),\"-\")","v":{"v":0,"d":"0.00%"}},{"$f":"IFERROR(IF(Prihod[[#This Row],[Budžet]]=Prihod[[#This Row],[Trenutni period]],0,IF(Prihod[[#This Row],[Trenutni period]]>Prihod[[#This Row],[Budžet]],ABS((Prihod[[#This Row],[Trenutni period]]/Prihod[[#This Row],[Budžet]])-1),IF(AND(Prihod[[#This Row],[Trenutni period]]<Prihod[[#This Row],[Budžet]],Prihod[[#This Row],[Budžet]]<0),-((Prihod[[#This Row],[Trenutni period]]/Prihod[[#This Row],[Budžet]])-1),(Prihod[[#This Row],[Trenutni period]]/Prihod[[#This Row],[Budžet]])-1))),\"-\")","v":{"v":0,"d":"0.00%"}}]
[null,"Ukupni prihod od prodaje",null,{"$f":"SUBTOTAL(109,Prihod[Prethodni period])","v":0},{"$f":"SUBTOTAL(109,Prihod[Budžet])","v":0},{"$f":"SUBTOTAL(109,Prihod[Trenutni period])","v":0},{"$f":"SUBTOTAL(109,Prihod[Trenutni period kao % prodaje])","v":{"v":0,"d":"0.00%"}},{"$f":"SUBTOTAL(109,Prihod[% promene u odnosu na prethodni period])","v":{"v":0,"d":"0.00%"}},{"$f":"SUBTOTAL(109,Prihod[% promene u odnosu na budžet])","v":{"v":0,"d":"0.00%"}}]

{"sheet":"Troškovi","index":3,"n_rows":25,"n_cols":9,"rows_kept":25,"merged":[[0,7,2,8]]}
[null,{"$f":"Naslov_RadneSveske","v":"Bilans stanja"}]
[null,{"$f":"Ime_preduzeća","v":"Ime preduzeća"},"Navedeno u hiljadama"]
[null,"Operativni troškovi",{"$f":"IFERROR(Operativni_troškovi[[#Totals],[Trenutni period]],\"-\")","v":0}]
[null,"Tip troška","Opis","Prethodni period","Budžet","Trenutni period","Trenutni period kao % prodaje","% promene u odnosu na prethodni period","% promene u odnosu na budžet"]
[null,"Prodaja i marketing","Reklamiranje",{"$nulls":3},{"$f":"IFERROR(IF(Prihod_od_prodaje=0,\"-\",Operativni_troškovi[Trenutni period]/Prihod_od_prodaje),\"-\")","v":"-"},{"$f":"IFERROR(IF(Operativni_troškovi[[#This Row],[Prethodni period]]=Operativni_troškovi[[#This Row],[Trenutni period]],0,IF(Operativni_troškovi[[#This Row],[Trenutni period]]>Operativni_troškovi[[#This Row],[Prethodni period]],ABS((Operativni_troškovi[[#This Row],[Trenutni period]]/Operativni_troškovi[[#This Row],[Prethodni period]])-1),IF(AND(Operativni_troškovi[[#This Row],[Trenutni period]]<Operativni_troškovi[[#This Row],[Prethodni period]],Operativni_troškovi[[#This Row],[Prethodni period]]<0),-((Operativni_troškovi[[#This Row],[Trenutni period]]/Operativni_troškovi[[#This Row],[Prethodni period]])-1),(Operativni_troškovi[[#This Row],[Trenutni period]]/Operativni_troškovi[[#This Row],[Prethodni period]])-1))),\"-\")","v":{"v":0,"d":"0.00%"}},{"$f":"IFERROR(IF(Operativni_troškovi[[#This Row],[Budžet]]=Operativni_troškovi[[#This Row],[Trenutni period]],0,IF(Operativni_troškovi[[#This Row],[Trenutni period]]>Operativni_troškovi[[#This Row],[Budžet]],ABS((Operativni_troškovi[[#This Row],[Trenutni period]]/Operativni_troškovi[[#This Row],[Budžet]])-1),IF(AND(Operativni_troškovi[[#This Row],[Trenutni period]]<Operativni_troškovi[[#This Row],[Budžet]],Operativni_troškovi[[#This Row],[Budžet]]<0),-((Operativni_troškovi[[#This Row],[Trenutni period]]/Operativni_troškovi[[#This Row],[Budžet]])-1),(Operativni_troškovi[[#This Row],[Trenutni period]]/Operativni_troškovi[[#This Row],[Budžet]])-1))),\"-\")","v":{"v":0,"d":"0.00%"}}]
[null,"Prodaja i marketing","Direktni marketing",{"$nulls":3},{"$f":"IFERROR(IF(Prihod_od_prodaje=0,\"-\",Operativni_troškovi[Trenutni period]/Prihod_od_prodaje),\"-\")","v":"-"},{"$f":"IFERROR(IF(Operativni_troškovi[[#This Row],[Prethodni period]]=Operativni_troškovi[[#This Row],[Trenutni period]],0,IF(Operativni_troškovi[[#This Row],[Trenutni period]]>Operativni_troškovi[[#This Row],[Prethodni period]],ABS((Operativni_troškovi[[#This Row],[Trenutni period]]/Operativni_troškovi[[#This Row],[Prethodni period]])-1),IF(AND(Operativni_troškovi[[#This Row],[Trenutni period]]<Operativni_troškovi[[#This Row],[Prethodni period]],Operativni_troškovi[[#This Row],[Prethodni period]]<0),-((Operativni_troškovi[[#This Row],[Trenutni period]]/Operativni_troškovi[[#This Row],[Prethodni period]])-1),(Operativni_troškovi[[#This Row],[Trenutni period]]/Operativni_troškovi[[#This Row],[Prethodni period]])-1))),\"-\")","v":{"v":0,"d":"0.00%"}},{"$f":"IFERROR(IF(Operativni_troškovi[[#This Row],[Budžet]]=Operativni_troškovi[[#This Row],[Trenutni period]],0,IF(Operativni_troškovi[[#This Row],[Trenutni period]]>Operativni_troškovi[[#This Row],[Budžet]],ABS((Operativni_troškovi[[#This Row],[Trenutni period]]/Operativni_troškovi[[#This Row],[Budžet]])-1),IF(AND(Operativni_troškovi[[#This Row],[Trenutni period]]<Operativni_troškovi[[#This Row],[Budžet]],Operativni_troškovi[[#This Row],[Budžet]]<0),-((Operativni_troškovi[[#This Row],[Trenutni period]]/Operativni_troškovi[[#This Row],[Budžet]])-1),(Operativni_troškovi[[#This Row],[Trenutni period]]/Operativni_troškovi[[#This Row],[Budžet]])-1))),\"-\")","v":{"v":0,"d":"0.00%"}}]
[null,"Prodaja i marketing","Ostali troškovi (navedite)",{"$nulls":3},{"$f":"IFERROR(IF(Prihod_od_prodaje=0,\"-\",Operativni_troškovi[Trenutni period]/Prihod_od_prodaje),\"-\")","v":"-"},{"$f":"IFERROR(IF(Operativni_troškovi[[#This Row],[Prethodni period]]=Operativni_troškovi[[#This Row],[Trenutni period]],0,IF(Operativni_troškovi[[#This Row],[Trenutni period]]>Operativni_troškovi[[#This Row],[Prethodni period]],ABS((Operativni_troškovi[[#This Row],[Trenutni period]]/Operativni_troškovi[[#This Row],[Prethodni period]])-1),IF(AND(Operativni_troškovi[[#This Row],[Trenutni period]]<Operativni_troškovi[[#This Row],[Prethodni period]],Operativni_troškovi[[#This Row],[Prethodni period]]<0),-((Operativni_troškovi[[#This Row],[Trenutni period]]/Operativni_troškovi[[#This Row],[Prethodni period]])-1),(Operativni_troškovi[[#This Row],[Trenutni period]]/Operativni_troškovi[[#This Row],[Prethodni period]])-1))),\"-\")","v":{"v":0,"d":"0.00%"}},{"$f":"IFERROR(IF(Operativni_troškovi[[#This Row],[Budžet]]=Operativni_troškovi[[#This Row],[Trenutni period]],0,IF(Operativni_troškovi[[#This Row],[Trenutni period]]>Operativni_troškovi[[#This Row],[Budžet]],ABS((Operativni_troškovi[[#This Row],[Trenutni period]]/Operativni_troškovi[[#This Row],[Budžet]])-1),IF(AND(Operativni_troškovi[[#This Row],[Trenutni period]]<Operativni_troškovi[[#This Row],[Budžet]],Operativni_troškovi[[#This Row],[Budžet]]<0),-((Operativni_troškovi[[#This Row],[Trenutni period]]/Operativni_troškovi[[#This Row],[Budžet]])-1),(Operativni_troškovi[[#This Row],[Trenutni period]]/Operativni_troškovi[[#This Row],[Budžet]])-1))),\"-\")","v":{"v":0,"d":"0.00%"}}]
[null,"Prodaja i marketing","Ostali troškovi (navedite)",{"$nulls":3},{"$f":"IFERROR(IF(Prihod_od_prodaje=0,\"-\",Operativni_troškovi[Trenutni period]/Prihod_od_prodaje),\"-\")","v":"-"},{"$f":"IFERROR(IF(Operativni_troškovi[[#This Row],[Prethodni period]]=Operativni_troškovi[[#This Row],[Trenutni period]],0,IF(Operativni_troškovi[[#This Row],[Trenutni period]]>Operativni_troškovi[[#This Row],[Prethodni period]],ABS((Operativni_troškovi[[#This Row],[Trenutni period]]/Operativni_troškovi[[#This Row],[Prethodni period]])-1),IF(AND(Operativni_troškovi[[#This Row],[Trenutni period]]<Operativni_troškovi[[#This Row],[Prethodni period]],Operativni_troškovi[[#This Row],[Prethodni period]]<0),-((Operativni_troškovi[[#This Row],[Trenutni period]]/Operativni_troškovi[[#This Row],[Prethodni period]])-1),(Operativni_troškovi[[#This Row],[Trenutni period]]/Operativni_troškovi[[#This Row],[Prethodni period]])-1))),\"-\")","v":{"v":0,"d":"0.00%"}},{"$f":"IFERROR(IF(Operativni_troškovi[[#This Row],[Budžet]]=Operativni_troškovi[[#This Row],[Trenutni period]],0,IF(Operativni_troškovi[[#This Row],[Trenutni period]]>Operativni_troškovi[[#This Row],[Budžet]],ABS((Operativni_troškovi[[#This Row],[Trenutni period]]/Operativni_troškovi[[#This Row],[Budžet]])-1),IF(AND(Operativni_troškovi[[#This Row],[Trenutni period]]<Operativni_troškovi[[#This Row],[Budžet]],Operativni_troškovi[[#This Row],[Budžet]]<0),-((Operativni_troškovi[[#This Row],[Trenutni period]]/Operativni_troškovi[[#This Row],[Budžet]])-1),(Operativni_troškovi[[#This Row],[Trenutni period]]/Operativni_troškovi[[#This Row],[Budžet]])-1))),\"-\")","v":{"v":0,"d":"0.00%"}}]
[null,"Istraživanje i razvoj","Licence za tehnologiju",{"$nulls":3},{"$f":"IFERROR(IF(Prihod_od_prodaje=0,\"-\",Operativni_troškovi[Trenutni period]/Prihod_od_prodaje),\"-\")","v":"-"},{"$f":"IFERROR(IF(Operativni_troškovi[[#This Row],[Prethodni period]]=Operativni_troškovi[[#This Row],[Trenutni period]],0,IF(Operativni_troškovi[[#This Row],[Trenutni period]]>Operativni_troškovi[[#This Row],[Prethodni period]],ABS((Operativni_troškovi[[#This Row],[Trenutni period]]/Operativni_troškovi[[#This Row],[Prethodni period]])-1),IF(AND(Operativni_troškovi[[#This Row],[Trenutni period]]<Operativni_troškovi[[#This Row],[Prethodni period]],Operativni_troškovi[[#This Row],[Prethodni period]]<0),-((Operativni_troškovi[[#This Row],[Trenutni period]]/Operativni_troškovi[[#This Row],[Prethodni period]])-1),(Operativni_troškovi[[#This Row],[Trenutni period]]/Operativni_troškovi[[#This Row],[Prethodni period]])-1))),\"-\")","v":{"v":0,"d":"0.00%"}},{"$f":"IFERROR(IF(Operativni_troškovi[[#This Row],[Budžet]]=Operativni_troškovi[[#This Row],[Trenutni period]],0,IF(Operativni_troškovi[[#This Row],[Trenutni period]]>Operativni_troškovi[[#This Row],[Budžet]],ABS((Operativni_troškovi[[#This Row],[Trenutni period]]/Operativni_troškovi[[#This Row],[Budžet]])-1),IF(AND(Operativni_troškovi[[#This Row],[Trenutni period]]<Operativni_troškovi[[#This Row],[Budžet]],Operativni_troškovi[[#This Row],[Budžet]]<0),-((Operativni_troškovi[[#This Row],[Trenutni period]]/Operativni_troškovi[[#This Row],[Budžet]])-1),(Operativni_troškovi[[#This Row],[Trenutni period]]/Operativni_troškovi[[#This Row],[Budžet]])-1))),\"-\")","v":{"v":0,"d":"0.00%"}}]
[null,"Istraživanje i razvoj","Patenti ",{"$nulls":3},{"$f":"IFERROR(IF(Prihod_od_prodaje=0,\"-\",Operativni_troškovi[Trenutni period]/Prihod_od_prodaje),\"-\")","v":"-"},{"$f":"IFERROR(IF(Operativni_troškovi[[#This Row],[Prethodni period]]=Operativni_troškovi[[#This Row],[Trenutni period]],0,IF(Operativni_troškovi[[#This Row],[Trenutni period]]>Operativni_troškovi[[#This Row],[Prethodni period]],ABS((Operativni_troškovi[[#This Row],[Trenutni period]]/Operativni_troškovi[[#This Row],[Prethodni period]])-1),IF(AND(Operativni_troškovi[[#This Row],[Trenutni period]]<Operativni_troškovi[[#This Row],[Prethodni period]],Operativni_troškovi[[#This Row],[Prethodni period]]<0),-((Operativni_troškovi[[#This Row],[Trenutni period]]/Operativni_troškovi[[#This Row],[Prethodni period]])-1),(Operativni_troškovi[[#This Row],[Trenutni period]]/Operativni_troškovi[[#This Row],[Prethodni period]])-1))),\"-\")","v":{"v":0,"d":"0.00%"}},{"$f":"IFERROR(IF(Operativni_troškovi[[#This Row],[Budžet]]=Operativni_troškovi[[#This Row],[Trenutni period]],0,IF(Operativni_troškovi[[#This Row],[Trenutni period]]>Operativni_troškovi[[#This Row],[Budžet]],ABS((Operativni_troškovi[[#This Row],[Trenutni period]]/Operativni_troškovi[[#This Row],[Budžet]])-1),IF(AND(Operativni_troškovi[[#This Row],[Trenutni period]]<Operativni_troškovi[[#This Row],[Budžet]],Operativni_troškovi[[#This Row],[Budžet]]<0),-((Operativni_troškovi[[#This Row],[Trenutni period]]/Operativni_troškovi[[#This Row],[Budžet]])-1),(Operativni_troškovi[[#This Row],[Trenutni period]]/Operativni_troškovi[[#This Row],[Budžet]])-1))),\"-\")","v":{"v":0,"d":"0.00%"}}]
[null,"Istraživanje i razvoj","Ostali troškovi (navedite)",{"$nulls":3},{"$f":"IFERROR(IF(Prihod_od_prodaje=0,\"-\",Operativni_troškovi[Trenutni period]/Prihod_od_prodaje),\"-\")","v":"-"},{"$f":"IFERROR(IF(Operativni_troškovi[[#This Row],[Prethodni period]]=Operativni_troškovi[[#This Row],[Trenutni period]],0,IF(Operativni_troškovi[[#This Row],[Trenutni period]]>Operativni_troškovi[[#This Row],[Prethodni period]],ABS((Operativni_troškovi[[#This Row],[Trenutni period]]/Operativni_troškovi[[#This Row],[Prethodni period]])-1),IF(AND(Operativni_troškovi[[#This Row],[Trenutni period]]<Operativni_troškovi[[#This Row],[Prethodni period]],Operativni_troškovi[[#This Row],[Prethodni period]]<0),-((Operativni_troškovi[[#This Row],[Trenutni period]]/Operativni_troškovi[[#This Row],[Prethodni period]])-1),(Operativni_troškovi[[#This Row],[Trenutni period]]/Operativni_troškovi[[#This Row],[Prethodni period]])-1))),\"-\")","v":{"v":0,"d":"0.00%"}},{"$f":"IFERROR(IF(Operativni_troškovi[[#This Row],[Budžet]]=Operativni_troškovi[[#This Row],[Trenutni period]],0,IF(Operativni_troškovi[[#This Row],[Trenutni period]]>Operativni_troškovi[[#This Row],[Budžet]],ABS((Operativni_troškovi[[#This Row],[Trenutni period]]/Operativni_troškovi[[#This Row],[Budžet]])-1),IF(AND(Operativni_troškovi[[#This Row],[Trenutni period]]<Operativni_troškovi[[#This Row],[Budžet]],Operativni_troškovi[[#This Row],[Budžet]]<0),-((Operativni_troškovi[[#This Row],[Trenutni period]]/Operativni_troškovi[[#This Row],[Budžet]])-1),(Operativni_troškovi[[#This Row],[Trenutni period]]/Operativni_troškovi[[#This Row],[Budžet]])-1))),\"-\")","v":{"v":0,"d":"0.00%"}}]
[null,"Istraživanje i razvoj","Ostali troškovi (navedite)",{"$nulls":3},{"$f":"IFERROR(IF(Prihod_od_prodaje=0,\"-\",Operativni_troškovi[Trenutni period]/Prihod_od_prodaje),\"-\")","v":"-"},{"$f":"IFERROR(IF(Operativni_troškovi[[#This Row],[Prethodni period]]=Operativni_troškovi[[#This Row],[Trenutni period]],0,IF(Operativni_troškovi[[#This Row],[Trenutni period]]>Operativni_troškovi[[#This Row],[Prethodni period]],ABS((Operativni_troškovi[[#This Row],[Trenutni period]]/Operativni_troškovi[[#This Row],[Prethodni period]])-1),IF(AND(Operativni_troškovi[[#This Row],[Trenutni period]]<Operativni_troškovi[[#This Row],[Prethodni period]],Operativni_troškovi[[#This Row],[Prethodni period]]<0),-((Operativni_troškovi[[#This Row],[Trenutni period]]/Operativni_troškovi[[#This Row],[Prethodni period]])-1),(Operativni_troškovi[[#This Row],[Trenutni period]]/Operativni_troškovi[[#This Row],[Prethodni period]])-1))),\"-\")","v":{"v":0,"d":"0.00%"}},{"$f":"IFERROR(IF(Operativni_troškovi[[#This Row],[Budžet]]=Operativni_troškovi[[#This Row],[Trenutni period]],0,IF(Operativni_troškovi[[#This Row],[Trenutni period]]>Operativni_troškovi[[#This Row],[Budžet]],ABS((Operativni_troškovi[[#This Row],[Trenutni period]]/Operativni_troškovi[[#This Row],[Budžet]])-1),IF(AND(Operativni_troškovi[[#This Row],[Trenutni period]]<Operativni_troškovi[[#This Row],[Budžet]],Operativni_troškovi[[#This Row],[Budžet]]<0),-((Operativni_troškovi[[#This Row],[Trenutni period]]/Operativni_troškovi[[#This Row],[Budžet]])-1),(Operativni_troškovi[[#This Row],[Trenutni period]]/Operativni_troškovi[[#This Row],[Budžet]])-1))),\"-\")","v":{"v":0,"d":"0.00%"}}]
[null,"Opšte i administrativne potrebe","Plate",{"$nulls":3},{"$f":"IFERROR(IF(Prihod_od_prodaje=0,\"-\",Operativni_troškovi[Trenutni period]/Prihod_od_prodaje),\"-\")","v":"-"},{"$f":"IFERROR(IF(Operativni_troškovi[[#This Row],[Prethodni period]]=Operativni_troškovi[[#This Row],[Trenutni period]],0,IF(Operativni_troškovi[[#This Row],[Trenutni period]]>Operativni_troškovi[[#This Row],[Prethodni period]],ABS((Operativni_troškovi[[#This Row],[Trenutni period]]/Operativni_troškovi[[#This Row],[Prethodni period]])-1),IF(AND(Operativni_troškovi[[#This Row],[Trenutni period]]<Operativni_troškovi[[#This Row],[Prethodni period]],Operativni_troškovi[[#This Row],[Prethodni period]]<0),-((Operativni_troškovi[[#This Row],[Trenutni period]]/Operativni_troškovi[[#This Row],[Prethodni period]])-1),(Operativni_troškovi[[#This Row],[Trenutni period]]/Operativni_troškovi[[#This Row],[Prethodni period]])-1))),\"-\")","v":{"v":0,"d":"0.00%"}},{"$f":"IFERROR(IF(Operativni_troškovi[[#This Row],[Budžet]]=Operativni_troškovi[[#This Row],[Trenutni period]],0,IF(Operativni_troškovi[[#This Row],[Trenutni period]]>Operativni_troškovi[[#This Row],[Budžet]],ABS((Operativni_troškovi[[#This Row],[Trenutni period]]/Operativni_troškovi[[#This Row],[Budžet]])-1),IF(AND(Operativni_troškovi[[#This Row],[Trenutni period]]<Operativni_troškovi[[#This Row],[Budžet]],Operativni_troškovi[[#This Row],[Budžet]]<0),-((Operativni_troškovi[[#This Row],[Trenutni period]]/Operativni_troškovi[[#This Row],[Budžet]])-1),(Operativni_troškovi[[#This Row],[Trenutni period]]/Operativni_troškovi[[#This Row],[Budžet]])-1))),\"-\")","v":{"v":0,"d":"0.00%"}}]
[null,"Opšte i administrativne potrebe","Spoljne usluge",{"$nulls":3},{"$f":"IFERROR(IF(Prihod_od_prodaje=0,\"-\",Operativni_troškovi[Trenutni period]/Prihod_od_prodaje),\"-\")","v":"-"},{"$f":"IFERROR(IF(Operativni_troškovi[[#This Row],[Prethodni period]]=Operativni_troškovi[[#This Row],[Trenutni period]],0,IF(Operativni_troškovi[[#This Row],[Trenutni period]]>Operativni_troškovi[[#This Row],[Prethodni period]],ABS((Operativni_troškovi[[#This Row],[Trenutni period]]/Operativni_troškovi[[#This Row],[Prethodni period]])-1),IF(AND(Operativni_troškovi[[#This Row],[Trenutni period]]<Operativni_troškovi[[#This Row],[Prethodni period]],Operativni_troškovi[[#This Row],[Prethodni period]]<0),-((Operativni_troškovi[[#This Row],[Trenutni period]]/Operativni_troškovi[[#This Row],[Prethodni period]])-1),(Operativni_troškovi[[#This Row],[Trenutni period]]/Operativni_troškovi[[#This Row],[Prethodni period]])-1))),\"-\")","v":{"v":0,"d":"0.00%"}},{"$f":"IFERROR(IF(Operativni_troškovi[[#This Row],[Budžet]]=Operativni_troškovi[[#This Row],[Trenutni period]],0,IF(Operativni_troškovi[[#This Row],[Trenutni period]]>Operativni_troškovi[[#This Row],[Budžet]],ABS((Operativni_troškovi[[#This Row],[Trenutni period]]/Operativni_troškovi[[#This Row],[Budžet]])-1),IF(AND(Operativni_troškovi[[#This Row],[Trenutni period]]<Operativni_troškovi[[#This Row],[Budžet]],Operativni_troškovi[[#This Row],[Budžet]]<0),-((Operativni_troškovi[[#This Row],[Trenutni period]]/Operativni_troškovi[[#This Row],[Budžet]])-1),(Operativni_troškovi[[#This Row],[Trenutni period]]/Operativni_troškovi[[#This Row],[Budžet]])-1))),\"-\")","v":{"v":0,"d":"0.00%"}}]
[null,"Opšte i administrativne potrebe","Pribor",{"$nulls":3},{"$f":"IFERROR(IF(Prihod_od_prodaje=0,\"-\",Operativni_troškovi[Trenutni period]/Prihod_od_prodaje),\"-\")","v":"-"},{"$f":"IFERROR(IF(Operativni_troškovi[[#This Row],[Prethodni period]]=Operativni_troškovi[[#This Row],[Trenutni period]],0,IF(Operativni_troškovi[[#This Row],[Trenutni period]]>Operativni_troškovi[[#This Row],[Prethodni period]],ABS((Operativni_troškovi[[#This Row],[Trenutni period]]/Operativni_troškovi[[#This Row],[Prethodni period]])-1),IF(AND(Operativni_troškovi[[#This Row],[Trenutni period]]<Operativni_troškovi[[#This Row],[Prethodni period]],Operativni_troškovi[[#This Row],[Prethodni period]]<0),-((Operativni_troškovi[[#This Row],[Trenutni period]]/Operativni_troškovi[[#This Row],[Prethodni period]])-1),(Operativni_troškovi[[#This Row],[Trenutni period]]/Operativni_troškovi[[#This Row],[Prethodni period]])-1))),\"-\")","v":{"v":0,"d":"0.00%"}},{"$f":"IFERROR(IF(Operativni_troškovi[[#This Row],[Budžet]]=Operativni_troškovi[[#This Row],[Trenutni period]],0,IF(Operativni_troškovi[[#This Row],[Trenutni period]]>Operativni_troškovi[[#This Row],[Budžet]],ABS((Operativni_troškovi[[#This Row],[Trenutni period]]/Operativni_troškovi[[#This Row],[Budžet]])-1),IF(AND(Operativni_troškovi[[#This Row],[Trenutni period]]<Operativni_troškovi[[#This Row],[Budžet]],Operativni_troškovi[[#This Row],[Budžet]]<0),-((Operativni_troškovi[[#This Row],[Trenutni period]]/Operativni_troškovi[[#This Row],[Budžet]])-1),(Operativni_troškovi[[#This Row],[Trenutni period]]/Operativni_troškovi[[#This Row],[Budžet]])-1))),\"-\")","v":{"v":0,"d":"0.00%"}}]
[null,"Opšte i administrativne potrebe","Obroci i zabava",{"$nulls":3},{"$f":"IFERROR(IF(Prihod_od_prodaje=0,\"-\",Operativni_troškovi[Trenutni period]/Prihod_od_prodaje),\"-\")","v":"-"},{"$f":"IFERROR(IF(Operativni_troškovi[[#This Row],[Prethodni period]]=Operativni_troškovi[[#This Row],[Trenutni period]],0,IF(Operativni_troškovi[[#This Row],[Trenutni period]]>Operativni_troškovi[[#This Row],[Prethodni period]],ABS((Operativni_troškovi[[#This Row],[Trenutni period]]/Operativni_troškovi[[#This Row],[Prethodni period]])-1),IF(AND(Operativni_troškovi[[#This Row],[Trenutni period]]<Operativni_troškovi[[#This Row],[Prethodni period]],Operativni_troškovi[[#This Row],[Prethodni period]]<0),-((Operativni_troškovi[[#This Row],[Trenutni period]]/Operativni_troškovi[[#This Row],[Prethodni period]])-1),(Operativni_troškovi[[#This Row],[Trenutni period]]/Operativni_troškovi[[#This Row],[Prethodni period]])-1))),\"-\")","v":{"v":0,"d":"0.00%"}},{"$f":"IFERROR(IF(Operativni_troškovi[[#This Row],[Budžet]]=Operativni_troškovi[[#This Row],[Trenutni period]],0,IF(Operativni_troškovi[[#This Row],[Trenutni period]]>Operativni_troškovi[[#This Row],[Budžet]],ABS((Operativni_troškovi[[#This Row],[Trenutni period]]/Operativni_troškovi[[#This Row],[Budžet]])-1),IF(AND(Operativni_troškovi[[#This Row],[Trenutni period]]<Operativni_troškovi[[#This Row],[Budžet]],Operativni_troškovi[[#This Row],[Budžet]]<0),-((Operativni_troškovi[[#This Row],[Trenutni period]]/Operativni_troškovi[[#This Row],[Budžet]])-1),(Operativni_troškovi[[#This Row],[Trenutni period]]/Operativni_troškovi[[#This Row],[Budžet]])-1))),\"-\")","v":{"v":0,"d":"0.00%"}}]
[null,"Opšte i administrativne potrebe","Renta",{"$nulls":3},{"$f":"IFERROR(IF(Prihod_od_prodaje=0,\"-\",Operativni_troškovi[Trenutni period]/Prihod_od_prodaje),\"-\")","v":"-"},{"$f":"IFERROR(IF(Operativni_troškovi[[#This Row],[Prethodni period]]=Operativni_troškovi[[#This Row],[Trenutni period]],0,IF(Operativni_troškovi[[#This Row],[Trenutni period]]>Operativni_troškovi[[#This Row],[Prethodni period]],ABS((Operativni_troškovi[[#This Row],[Trenutni period]]/Operativni_troškovi[[#This Row],[Prethodni period]])-1),IF(AND(Operativni_troškovi[[#This Row],[Trenutni period]]<Operativni_troškovi[[#This Row],[Prethodni period]],Operativni_troškovi[[#This Row],[Prethodni period]]<0),-((Operativni_troškovi[[#This Row],[Trenutni period]]/Operativni_troškovi[[#This Row],[Prethodni period]])-1),(Operativni_troškovi[[#This Row],[Trenutni period]]/Operativni_troškovi[[#This Row],[Prethodni period]])-1))),\"-\")","v":{"v":0,"d":"0.00%"}},{"$f":"IFERROR(IF(Operativni_troškovi[[#This Row],[Budžet]]=Operativni_troškovi[[#This Row],[Trenutni period]],0,IF(Operativni_troškovi[[#This Row],[Trenutni period]]>Operativni_troškovi[[#This Row],[Budžet]],ABS((Operativni_troškovi[[#This Row],[Trenutni period]]/Operativni_troškovi[[#This Row],[Budžet]])-1),IF(AND(Operativni_troškovi[[#This Row],[Trenutni period]]<Operativni_troškovi[[#This Row],[Budžet]],Operativni_troškovi[[#This Row],[Budžet]]<0),-((Operativni_troškovi[[#This Row],[Trenutni period]]/Operativni_troškovi[[#This Row],[Budžet]])-1),(Operativni_troškovi[[#This Row],[Trenutni period]]/Operativni_troškovi[[#This Row],[Budžet]])-1))),\"-\")","v":{"v":0,"d":"0.00%"}}]
[null,"Opšte i administrativne potrebe","Telefon",{"$nulls":3},{"$f":"IFERROR(IF(Prihod_od_prodaje=0,\"-\",Operativni_troškovi[Trenutni period]/Prihod_od_prodaje),\"-\")","v":"-"},{"$f":"IFERROR(IF(Operativni_troškovi[[#This Row],[Prethodni period]]=Operativni_troškovi[[#This Row],[Trenutni period]],0,IF(Operativni_troškovi[[#This Row],[Trenutni period]]>Operativni_troškovi[[#This Row],[Prethodni period]],ABS((Operativni_troškovi[[#This Row],[Trenutni period]]/Operativni_troškovi[[#This Row],[Prethodni period]])-1),IF(AND(Operativni_troškovi[[#This Row],[Trenutni period]]<Operativni_troškovi[[#This Row],[Prethodni period]],Operativni_troškovi[[#This Row],[Prethodni period]]<0),-((Operativni_troškovi[[#This Row],[Trenutni period]]/Operativni_troškovi[[#This Row],[Prethodni period]])-1),(Operativni_troškovi[[#This Row],[Trenutni period]]/Operativni_troškovi[[#This Row],[Prethodni period]])-1))),\"-\")","v":{"v":0,"d":"0.00%"}},{"$f":"IFERROR(IF(Operativni_troškovi[[#This Row],[Budžet]]=Operativni_troškovi[[#This Row],[Trenutni period]],0,IF(Operativni_troškovi[[#This Row],[Trenutni period]]>Operativni_troškovi[[#This Row],[Budžet]],ABS((Operativni_troškovi[[#This Row],[Trenutni period]]/Operativni_troškovi[[#This Row],[Budžet]])-1),IF(AND(Operativni_troškovi[[#This Row],[Trenutni period]]<Operativni_troškovi[[#This Row],[Budžet]],Operativni_troškovi[[#This Row],[Budžet]]<0),-((Operativni_troškovi[[#This Row],[Trenutni period]]/Operativni_troškovi[[#This Row],[Budžet]])-1),(Operativni_troškovi[[#This Row],[Trenutni period]]/Operativni_troškovi[[#This Row],[Budžet]])-1))),\"-\")","v":{"v":0,"d":"0.00%"}}]
[null,"Opšte i administrativne potrebe","Komunalne usluge",{"$nulls":3},{"$f":"IFERROR(IF(Prihod_od_prodaje=0,\"-\",Operativni_troškovi[Trenutni period]/Prihod_od_prodaje),\"-\")","v":"-"},{"$f":"IFERROR(IF(Operativni_troškovi[[#This Row],[Prethodni period]]=Operativni_troškovi[[#This Row],[Trenutni period]],0,IF(Operativni_troškovi[[#This Row],[Trenutni period]]>Operativni_troškovi[[#This Row],[Prethodni period]],ABS((Operativni_troškovi[[#This Row],[Trenutni period]]/Operativni_troškovi[[#This Row],[Prethodni period]])-1),IF(AND(Operativni_troškovi[[#This Row],[Trenutni period]]<Operativni_troškovi[[#This Row],[Prethodni period]],Operativni_troškovi[[#This Row],[Prethodni period]]<0),-((Operativni_troškovi[[#This Row],[Trenutni period]]/Operativni_troškovi[[#This Row],[Prethodni period]])-1),(Operativni_troškovi[[#This Row],[Trenutni period]]/Operativni_troškovi[[#This Row],[Prethodni period]])-1))),\"-\")","v":{"v":0,"d":"0.00%"}},{"$f":"IFERROR(IF(Operativni_troškovi[[#This Row],[Budžet]]=Operativni_troškovi[[#This Row],[Trenutni period]],0,IF(Operativni_troškovi[[#This Row],[Trenutni period]]>Operativni_troškovi[[#This Row],[Budžet]],ABS((Operativni_troškovi[[#This Row],[Trenutni period]]/Operativni_troškovi[[#This Row],[Budžet]])-1),IF(AND(Operativni_troškovi[[#This Row],[Trenutni period]]<Operativni_troškovi[[#This Row],[Budžet]],Operativni_troškovi[[#This Row],[Budžet]]<0),-((Operativni_troškovi[[#This Row],[Trenutni period]]/Operativni_troškovi[[#This Row],[Budžet]])-1),(Operativni_troškovi[[#This Row],[Trenutni period]]/Operativni_troškovi[[#This Row],[Budžet]])-1))),\"-\")","v":{"v":0,"d":"0.00%"}}]
[null,"Opšte i administrativne potrebe","Amortizacija",{"$nulls":3},{"$f":"IFERROR(IF(Prihod_od_prodaje=0,\"-\",Operativni_troškovi[Trenutni period]/Prihod_od_prodaje),\"-\")","v":"-"},{"$f":"IFERROR(IF(Operativni_troškovi[[#This Row],[Prethodni period]]=Operativni_troškovi[[#This Row],[Trenutni period]],0,IF(Operativni_troškovi[[#This Row],[Trenutni period]]>Operativni_troškovi[[#This Row],[Prethodni period]],ABS((Operativni_troškovi[[#This Row],[Trenutni period]]/Operativni_troškovi[[#This Row],[Prethodni period]])-1),IF(AND(Operativni_troškovi[[#This Row],[Trenutni period]]<Operativni_troškovi[[#This Row],[Prethodni period]],Operativni_troškovi[[#This Row],[Prethodni period]]<0),-((Operativni_troškovi[[#This Row],[Trenutni period]]/Operativni_troškovi[[#This Row],[Prethodni period]])-1),(Operativni_troškovi[[#This Row],[Trenutni period]]/Operativni_troškovi[[#This Row],[Prethodni period]])-1))),\"-\")","v":{"v":0,"d":"0.00%"}},{"$f":"IFERROR(IF(Operativni_troškovi[[#This Row],[Budžet]]=Operativni_troškovi[[#This Row],[Trenutni period]],0,IF(Operativni_troškovi[[#This Row],[Trenutni period]]>Operativni_troškovi[[#This Row],[Budžet]],ABS((Operativni_troškovi[[#This Row],[Trenutni period]]/Operativni_troškovi[[#This Row],[Budžet]])-1),IF(AND(Operativni_troškovi[[#This Row],[Trenutni period]]<Operativni_troškovi[[#This Row],[Budžet]],Operativni_troškovi[[#This Row],[Budžet]]<0),-((Operativni_troškovi[[#This Row],[Trenutni period]]/Operativni_troškovi[[#This Row],[Budžet]])-1),(Operativni_troškovi[[#This Row],[Trenutni period]]/Operativni_troškovi[[#This Row],[Budžet]])-1))),\"-\")","v":{"v":0,"d":"0.00%"}}]
[null,"Opšte i administrativne potrebe","Osiguranje",{"$nulls":3},{"$f":"IFERROR(IF(Prihod_od_prodaje=0,\"-\",Operativni_troškovi[Trenutni period]/Prihod_od_prodaje),\"-\")","v":"-"},{"$f":"IFERROR(IF(Operativni_troškovi[[#This Row],[Prethodni period]]=Operativni_troškovi[[#This Row],[Trenutni period]],0,IF(Operativni_troškovi[[#This Row],[Trenutni period]]>Operativni_troškovi[[#This Row],[Prethodni period]],ABS((Operativni_troškovi[[#This Row],[Trenutni period]]/Operativni_troškovi[[#This Row],[Prethodni period]])-1),IF(AND(Operativni_troškovi[[#This Row],[Trenutni period]]<Operativni_troškovi[[#This Row],[Prethodni period]],Operativni_troškovi[[#This Row],[Prethodni period]]<0),-((Operativni_troškovi[[#This Row],[Trenutni period]]/Operativni_troškovi[[#This Row],[Prethodni period]])-1),(Operativni_troškovi[[#This Row],[Trenutni period]]/Operativni_troškovi[[#This Row],[Prethodni period]])-1))),\"-\")","v":{"v":0,"d":"0.00%"}},{"$f":"IFERROR(IF(Operativni_troškovi[[#This Row],[Budžet]]=Operativni_troškovi[[#This Row],[Trenutni period]],0,IF(Operativni_troškovi[[#This Row],[Trenutni period]]>Operativni_troškovi[[#This Row],[Budžet]],ABS((Operativni_troškovi[[#This Row],[Trenutni period]]/Operativni_troškovi[[#This Row],[Budžet]])-1),IF(AND(Operativni_troškovi[[#This Row],[Trenutni period]]<Operativni_troškovi[[#This Row],[Budžet]],Operativni_troškovi[[#This Row],[Budžet]]<0),-((Operativni_troškovi[[#This Row],[Trenutni period]]/Operativni_troškovi[[#This Row],[Budžet]])-1),(Operativni_troškovi[[#This Row],[Trenutni period]]/Operativni_troškovi[[#This Row],[Budžet]])-1))),\"-\")","v":{"v":0,"d":"0.00%"}}]
[null,"Opšte i administrativne potrebe","Popravke i održavanje",{"$nulls":3},{"$f":"IFERROR(IF(Prihod_od_prodaje=0,\"-\",Operativni_troškovi[Trenutni period]/Prihod_od_prodaje),\"-\")","v":"-"},{"$f":"IFERROR(IF(Operativni_troškovi[[#This Row],[Prethodni period]]=Operativni_troškovi[[#This Row],[Trenutni period]],0,IF(Operativni_troškovi[[#This Row],[Trenutni period]]>Operativni_troškovi[[#This Row],[Prethodni period]],ABS((Operativni_troškovi[[#This Row],[Trenutni period]]/Operativni_troškovi[[#This Row],[Prethodni period]])-1),IF(AND(Operativni_troškovi[[#This Row],[Trenutni period]]<Operativni_troškovi[[#This Row],[Prethodni period]],Operativni_troškovi[[#This Row],[Prethodni period]]<0),-((Operativni_troškovi[[#This Row],[Trenutni period]]/Operativni_troškovi[[#This Row],[Prethodni period]])-1),(Operativni_troškovi[[#This Row],[Trenutni period]]/Operativni_troškovi[[#This Row],[Prethodni period]])-1))),\"-\")","v":{"v":0,"d":"0.00%"}},{"$f":"IFERROR(IF(Operativni_troškovi[[#This Row],[Budžet]]=Operativni_troškovi[[#This Row],[Trenutni period]],0,IF(Operativni_troškovi[[#This Row],[Trenutni period]]>Operativni_troškovi[[#This Row],[Budžet]],ABS((Operativni_troškovi[[#This Row],[Trenutni period]]/Operativni_troškovi[[#This Row],[Budžet]])-1),IF(AND(Operativni_troškovi[[#This Row],[Trenutni period]]<Operativni_troškovi[[#This Row],[Budžet]],Operativni_troškovi[[#This Row],[Budžet]]<0),-((Operativni_troškovi[[#This Row],[Trenutni period]]/Operativni_troškovi[[#This Row],[Budžet]])-1),(Operativni_troškovi[[#This Row],[Trenutni period]]/Operativni_troškovi[[#This Row],[Budžet]])-1))),\"-\")","v":{"v":0,"d":"0.00%"}}]
[null,"Opšte i administrativne potrebe","Ostali troškovi (navedite)",{"$nulls":3},{"$f":"IFERROR(IF(Prihod_od_prodaje=0,\"-\",Operativni_troškovi[Trenutni period]/Prihod_od_prodaje),\"-\")","v":"-"},{"$f":"IFERROR(IF(Operativni_troškovi[[#This Row],[Prethodni period]]=Operativni_troškovi[[#This Row],[Trenutni period]],0,IF(Operativni_troškovi[[#This Row],[Trenutni period]]>Operativni_troškovi[[#This Row],[Prethodni period]],ABS((Operativni_troškovi[[#This Row],[Trenutni period]]/Operativni_troškovi[[#This Row],[Prethodni period]])-1),IF(AND(Operativni_troškovi[[#This Row],[Trenutni period]]<Operativni_troškovi[[#This Row],[Prethodni period]],Operativni_troškovi[[#This Row],[Prethodni period]]<0),-((Operativni_troškovi[[#This Row],[Trenutni period]]/Operativni_troškovi[[#This Row],[Prethodni period]])-1),(Operativni_troškovi[[#This Row],[Trenutni period]]/Operativni_troškovi[[#This Row],[Prethodni period]])-1))),\"-\")","v":{"v":0,"d":"0.00%"}},{"$f":"IFERROR(IF(Operativni_troškovi[[#This Row],[Budžet]]=Operativni_troškovi[[#This Row],[Trenutni period]],0,IF(Operativni_troškovi[[#This Row],[Trenutni period]]>Operativni_troškovi[[#This Row],[Budžet]],ABS((Operativni_troškovi[[#This Row],[Trenutni period]]/Operativni_troškovi[[#This Row],[Budžet]])-1),IF(AND(Operativni_troškovi[[#This Row],[Trenutni period]]<Operativni_troškovi[[#This Row],[Budžet]],Operativni_troškovi[[#This Row],[Budžet]]<0),-((Operativni_troškovi[[#This Row],[Trenutni period]]/Operativni_troškovi[[#This Row],[Budžet]])-1),(Operativni_troškovi[[#This Row],[Trenutni period]]/Operativni_troškovi[[#This Row],[Budžet]])-1))),\"-\")","v":{"v":0,"d":"0.00%"}}]
[null,"Opšte i administrativne potrebe","Ostali troškovi (navedite)",{"$nulls":3},{"$f":"IFERROR(IF(Prihod_od_prodaje=0,\"-\",Operativni_troškovi[Trenutni period]/Prihod_od_prodaje),\"-\")","v":"-"},{"$f":"IFERROR(IF(Operativni_troškovi[[#This Row],[Prethodni period]]=Operativni_troškovi[[#This Row],[Trenutni period]],0,IF(Operativni_troškovi[[#This Row],[Trenutni period]]>Operativni_troškovi[[#This Row],[Prethodni period]],ABS((Operativni_troškovi[[#This Row],[Trenutni period]]/Operativni_troškovi[[#This Row],[Prethodni period]])-1),IF(AND(Operativni_troškovi[[#This Row],[Trenutni period]]<Operativni_troškovi[[#This Row],[Prethodni period]],Operativni_troškovi[[#This Row],[Prethodni period]]<0),-((Operativni_troškovi[[#This Row],[Trenutni period]]/Operativni_troškovi[[#This Row],[Prethodni period]])-1),(Operativni_troškovi[[#This Row],[Trenutni period]]/Operativni_troškovi[[#This Row],[Prethodni period]])-1))),\"-\")","v":{"v":0,"d":"0.00%"}},{"$f":"IFERROR(IF(Operativni_troškovi[[#This Row],[Budžet]]=Operativni_troškovi[[#This Row],[Trenutni period]],0,IF(Operativni_troškovi[[#This Row],[Trenutni period]]>Operativni_troškovi[[#This Row],[Budžet]],ABS((Operativni_troškovi[[#This Row],[Trenutni period]]/Operativni_troškovi[[#This Row],[Budžet]])-1),IF(AND(Operativni_troškovi[[#This Row],[Trenutni period]]<Operativni_troškovi[[#This Row],[Budžet]],Operativni_troškovi[[#This Row],[Budžet]]<0),-((Operativni_troškovi[[#This Row],[Trenutni period]]/Operativni_troškovi[[#This Row],[Budžet]])-1),(Operativni_troškovi[[#This Row],[Trenutni period]]/Operativni_troškovi[[#This Row],[Budžet]])-1))),\"-\")","v":{"v":0,"d":"0.00%"}}]
[null,"Ukupni operativni troškovi",null,{"$f":"SUBTOTAL(109,Operativni_troškovi[Prethodni period])","v":0},{"$f":"SUBTOTAL(109,Operativni_troškovi[Budžet])","v":0},{"$f":"SUBTOTAL(109,Operativni_troškovi[Trenutni period])","v":0},{"$f":"SUBTOTAL(109,Operativni_troškovi[Trenutni period kao % prodaje])","v":{"v":0,"d":"0.00%"}},{"$f":"SUBTOTAL(109,Operativni_troškovi[% promene u odnosu na prethodni period])","v":{"v":0,"d":"0.00%"}},{"$f":"SUBTOTAL(109,Operativni_troškovi[% promene u odnosu na budžet])","v":{"v":0,"d":"0.00%"}}]

{"sheet":"Porezi","index":4,"n_rows":10,"n_cols":9,"rows_kept":10,"merged":[[0,7,2,8]]}
[null,{"$f":"Naslov_RadneSveske","v":"Bilans stanja"}]
[null,{"$f":"Ime_preduzeća","v":"Ime preduzeća"},"Navedeno u hiljadama"]
[null,"Porezi",{"$f":"IFERROR(Porezi[[#Totals],[Trenutni period]],\"-\")","v":0}]
[null,"Vrsta","Opis","Prethodni period","Budžet","Trenutni period","Trenutni period kao % prodaje","% promene u odnosu na prethodni period","% promene u odnosu na budžet"]
[null,"Porezi","Porezi na prihod",{"$nulls":3},{"$f":"IFERROR(IF(Prihod_od_prodaje=0,\"-\",Porezi[Trenutni period]/Prihod_od_prodaje),\"-\")","v":"-"},{"$f":"IFERROR(IF(Porezi[[#This Row],[Prethodni period]]=Porezi[[#This Row],[Trenutni period]],0,IF(Porezi[[#This Row],[Trenutni period]]>Porezi[[#This Row],[Prethodni period]],ABS((Porezi[[#This Row],[Trenutni period]]/Porezi[[#This Row],[Prethodni period]])-1),IF(AND(Porezi[[#This Row],[Trenutni period]]<Porezi[[#This Row],[Prethodni period]],Porezi[[#This Row],[Prethodni period]]<0),-((Porezi[[#This Row],[Trenutni period]]/Porezi[[#This Row],[Prethodni period]])-1),(Porezi[[#This Row],[Trenutni period]]/Porezi[[#This Row],[Prethodni period]])-1))),\"-\")","v":{"v":0,"d":"0.00%"}},{"$f":"IFERROR(IF(Porezi[[#This Row],[Budžet]]=Porezi[[#This Row],[Trenutni period]],0,IF(Porezi[[#This Row],[Trenutni period]]>Porezi[[#This Row],[Budžet]],ABS((Porezi[[#This Row],[Trenutni period]]/Porezi[[#This Row],[Budžet]])-1),IF(AND(Porezi[[#This Row],[Trenutni period]]<Porezi[[#This Row],[Budžet]],Porezi[[#This Row],[Budžet]]<0),-((Porezi[[#This Row],[Trenutni period]]/Porezi[[#This Row],[Budžet]])-1),(Porezi[[#This Row],[Trenutni period]]/Porezi[[#This Row],[Budžet]])-1))),\"-\")","v":{"v":0,"d":"0.00%"}}]
[null,"Porezi","Porezi po platnom spisku",{"$nulls":3},{"$f":"IFERROR(IF(Prihod_od_prodaje=0,\"-\",Porezi[Trenutni period]/Prihod_od_prodaje),\"-\")","v":"-"},{"$f":"IFERROR(IF(Porezi[[#This Row],[Prethodni period]]=Porezi[[#This Row],[Trenutni period]],0,IF(Porezi[[#This Row],[Trenutni period]]>Porezi[[#This Row],[Prethodni period]],ABS((Porezi[[#This Row],[Trenutni period]]/Porezi[[#This Row],[Prethodni period]])-1),IF(AND(Porezi[[#This Row],[Trenutni period]]<Porezi[[#This Row],[Prethodni period]],Porezi[[#This Row],[Prethodni period]]<0),-((Porezi[[#This Row],[Trenutni period]]/Porezi[[#This Row],[Prethodni period]])-1),(Porezi[[#This Row],[Trenutni period]]/Porezi[[#This Row],[Prethodni period]])-1))),\"-\")","v":{"v":0,"d":"0.00%"}},{"$f":"IFERROR(IF(Porezi[[#This Row],[Budžet]]=Porezi[[#This Row],[Trenutni period]],0,IF(Porezi[[#This Row],[Trenutni period]]>Porezi[[#This Row],[Budžet]],ABS((Porezi[[#This Row],[Trenutni period]]/Porezi[[#This Row],[Budžet]])-1),IF(AND(Porezi[[#This Row],[Trenutni period]]<Porezi[[#This Row],[Budžet]],Porezi[[#This Row],[Budžet]]<0),-((Porezi[[#This Row],[Trenutni period]]/Porezi[[#This Row],[Budžet]])-1),(Porezi[[#This Row],[Trenutni period]]/Porezi[[#This Row],[Budžet]])-1))),\"-\")","v":{"v":0,"d":"0.00%"}}]
[null,"Porezi","Porezi na nekretnine",{"$nulls":3},{"$f":"IFERROR(IF(Prihod_od_prodaje=0,\"-\",Porezi[Trenutni period]/Prihod_od_prodaje),\"-\")","v":"-"},{"$f":"IFERROR(IF(Porezi[[#This Row],[Prethodni period]]=Porezi[[#This Row],[Trenutni period]],0,IF(Porezi[[#This Row],[Trenutni period]]>Porezi[[#This Row],[Prethodni period]],ABS((Porezi[[#This Row],[Trenutni period]]/Porezi[[#This Row],[Prethodni period]])-1),IF(AND(Porezi[[#This Row],[Trenutni period]]<Porezi[[#This Row],[Prethodni period]],Porezi[[#This Row],[Prethodni period]]<0),-((Porezi[[#This Row],[Trenutni period]]/Porezi[[#This Row],[Prethodni period]])-1),(Porezi[[#This Row],[Trenutni period]]/Porezi[[#This Row],[Prethodni period]])-1))),\"-\")","v":{"v":0,"d":"0.00%"}},{"$f":"IFERROR(IF(Porezi[[#This Row],[Budžet]]=Porezi[[#This Row],[Trenutni period]],0,IF(Porezi[[#This Row],[Trenutni period]]>Porezi[[#This Row],[Budžet]],ABS((Porezi[[#This Row],[Trenutni period]]/Porezi[[#This Row],[Budžet]])-1),IF(AND(Porezi[[#This Row],[Trenutni period]]<Porezi[[#This Row],[Budžet]],Porezi[[#This Row],[Budžet]]<0),-((Porezi[[#This Row],[Trenutni period]]/Porezi[[#This Row],[Budžet]])-1),(Porezi[[#This Row],[Trenutni period]]/Porezi[[#This Row],[Budžet]])-1))),\"-\")","v":{"v":0,"d":"0.00%"}}]
[null,"Porezi","Ostali porezi (navesti)",{"$nulls":3},{"$f":"IFERROR(IF(Prihod_od_prodaje=0,\"-\",Porezi[Trenutni period]/Prihod_od_prodaje),\"-\")","v":"-"},{"$f":"IFERROR(IF(Porezi[[#This Row],[Prethodni period]]=Porezi[[#This Row],[Trenutni period]],0,IF(Porezi[[#This Row],[Trenutni period]]>Porezi[[#This Row],[Prethodni period]],ABS((Porezi[[#This Row],[Trenutni period]]/Porezi[[#This Row],[Prethodni period]])-1),IF(AND(Porezi[[#This Row],[Trenutni period]]<Porezi[[#This Row],[Prethodni period]],Porezi[[#This Row],[Prethodni period]]<0),-((Porezi[[#This Row],[Trenutni period]]/Porezi[[#This Row],[Prethodni period]])-1),(Porezi[[#This Row],[Trenutni period]]/Porezi[[#This Row],[Prethodni period]])-1))),\"-\")","v":{"v":0,"d":"0.00%"}},{"$f":"IFERROR(IF(Porezi[[#This Row],[Budžet]]=Porezi[[#This Row],[Trenutni period]],0,IF(Porezi[[#This Row],[Trenutni period]]>Porezi[[#This Row],[Budžet]],ABS((Porezi[[#This Row],[Trenutni period]]/Porezi[[#This Row],[Budžet]])-1),IF(AND(Porezi[[#This Row],[Trenutni period]]<Porezi[[#This Row],[Budžet]],Porezi[[#This Row],[Budžet]]<0),-((Porezi[[#This Row],[Trenutni period]]/Porezi[[#This Row],[Budžet]])-1),(Porezi[[#This Row],[Trenutni period]]/Porezi[[#This Row],[Budžet]])-1))),\"-\")","v":{"v":0,"d":"0.00%"}}]
[null,"Porezi","Ostali porezi (navesti)",{"$nulls":3},{"$f":"IFERROR(IF(Prihod_od_prodaje=0,\"-\",Porezi[Trenutni period]/Prihod_od_prodaje),\"-\")","v":"-"},{"$f":"IFERROR(IF(Porezi[[#This Row],[Prethodni period]]=Porezi[[#This Row],[Trenutni period]],0,IF(Porezi[[#This Row],[Trenutni period]]>Porezi[[#This Row],[Prethodni period]],ABS((Porezi[[#This Row],[Trenutni period]]/Porezi[[#This Row],[Prethodni period]])-1),IF(AND(Porezi[[#This Row],[Trenutni period]]<Porezi[[#This Row],[Prethodni period]],Porezi[[#This Row],[Prethodni period]]<0),-((Porezi[[#This Row],[Trenutni period]]/Porezi[[#This Row],[Prethodni period]])-1),(Porezi[[#This Row],[Trenutni period]]/Porezi[[#This Row],[Prethodni period]])-1))),\"-\")","v":{"v":0,"d":"0.00%"}},{"$f":"IFERROR(IF(Porezi[[#This Row],[Budžet]]=Porezi[[#This Row],[Trenutni period]],0,IF(Porezi[[#This Row],[Trenutni period]]>Porezi[[#This Row],[Budžet]],ABS((Porezi[[#This Row],[Trenutni period]]/Porezi[[#This Row],[Budžet]])-1),IF(AND(Porezi[[#This Row],[Trenutni period]]<Porezi[[#This Row],[Budžet]],Porezi[[#This Row],[Budžet]]<0),-((Porezi[[#This Row],[Trenutni period]]/Porezi[[#This Row],[Budžet]])-1),(Porezi[[#This Row],[Trenutni period]]/Porezi[[#This Row],[Budžet]])-1))),\"-\")","v":{"v":0,"d":"0.00%"}}]
[null,"Ukupni porezi",null,{"$f":"SUBTOTAL(109,Porezi[Prethodni period])","v":0},{"$f":"SUBTOTAL(109,Porezi[Budžet])","v":0},{"$f":"SUBTOTAL(109,Porezi[Trenutni period])","v":0},{"$f":"IFERROR(SUBTOTAL(109,Porezi[Trenutni period kao % prodaje]),\"-\")","v":{"v":0,"d":"0.00%"}},{"$f":"SUBTOTAL(109,Porezi[% promene u odnosu na prethodni period])","v":{"v":0,"d":"0.00%"}},{"$f":"SUBTOTAL(109,Porezi[% promene u odnosu na budžet])","v":{"v":0,"d":"0.00%"}}]

{"sheet":"Kategorije","index":5,"n_rows":8,"n_cols":2,"rows_kept":8}
[null,"Kategorije"]
[null,"Prihod od prodaje"]
[null,"Trošak prodaje"]
[null,"Prihod"]
[null,"Prodaja i marketing"]
[null,"Istraživanje i razvoj"]
[null,"Opšte i administrativne potrebe"]
[null,"Porezi"]